fUST/lending_fUST_20250529
["ID","MTS","AMOUNT","RATE_DAILY","PERIOD"]
[362875961,1748505049777,-430.0,0.00022465,2]
[362875962,1748505049787,-430.0,0.00022465,2]
[362875963,1748505049797,-430.0,0.00022465,2]
[362875964,1748505049807,-722.52,0.00022465,2]
[362875965,1748505049817,-254.3569179,0.00022465,2]
[362875966,1748505049826,-791.86,0.00022465,2]
[362875967,1748505049836,-430.0,0.00022465,2]
[362875968,1748505049846,-1447.82,0.00022465,2]
[362875969,1748505049855,-433.64,0.00022465,2]
[362875970,1748505049865,-430.0,0.00022465,2]
[362875971,1748505049877,-756.65,0.00022465,2]
[362875972,1748505049886,-430.0,0.00022465,2]
[362875973,1748505049896,-1636.66,0.00022465,2]
[362875974,1748505049905,-576.68,0.00022465,2]
[362875975,1748505049914,-359.64031325,0.00022465,2]
[362875976,1748505049923,-666.11,0.00022465,2]
[362875977,1748505049932,-430.0,0.00022465,2]
[362875978,1748505049942,-718.68,0.00022465,2]
[362875979,1748505049951,-575.25,0.00022465,2]
[362875980,1748505049961,-430.0,0.00022465,2]
[362875981,1748505049971,-1886.86,0.00022465,2]
[362875982,1748505049980,-430.0,0.00022465,2]
[362875983,1748505049990,-430.0,0.00022465,2]
[362875984,1748505050000,-817.8,0.00022465,2]
[362875985,1748505050011,-449.36,0.00022465,2]
[362875986,1748505050021,-151.0,0.00022486,7]
[362875987,1748505050032,-217.49321,0.00022486,7]
[362875988,1748505050042,-217.49321,0.00022486,7]
[362875989,1748505050052,-151.0,0.00022486,7]
[362875990,1748505050062,-151.0,0.00022486,7]
[362875991,1748505050071,-151.0,0.00022486,7]
[362875992,1748505050081,-177.068294,0.00022486,7]
[362875993,1748505050090,-410.55189418,0.00022486,7]
[362875994,1748505050100,-501.0,0.000226,7]
[362875995,1748505050110,-239.319492,0.00022603,2]
[362875996,1748505050119,-410.55189418,0.00022659,7]
[362875997,1748505050128,-251.77889876,0.00022667,2]
[362875998,1748505050138,-967.23,0.000227,2]
[362875999,1748505050147,-218.803986,0.000227,7]
[362876000,1748505050156,-218.803986,0.000227,7]
[362876001,1748505050166,-151.0,0.000227,7]
[362876002,1748505050176,-208.884066,0.000227,7]
[362876003,1748505050185,-151.0,0.00022739,2]
[362876004,1748505050195,-151.0,0.00022739,7]
[362876005,1748505050205,-151.0,0.00022739,7]
[362876006,1748505050216,-151.0,0.00022739,7]
[362876007,1748505050226,-151.0,0.00022739,7]
[362876008,1748505050237,-151.0,0.00022739,7]
[362876009,1748505050247,-183.683837,0.00022739,7]
[362876010,1748505050257,-183.683837,0.00022739,7]
[362876011,1748505050267,-430.0,0.00022739,2]
[362876012,1748505050276,-231.06,0.00022739,2]
[362876013,1748505050288,-430.0,0.00022739,2]
[362876014,1748505050298,-430.0,0.00022739,2]
[362876015,1748505050308,-615.3,0.00022739,2]
[362876016,1748505050317,-430.0,0.00022739,2]
[362876017,1748505050327,-2732.65,0.00022739,2]
[362876018,1748505050336,-993.66,0.00022739,2]
[362876019,1748505050346,-613.17,0.00022739,2]
[362876020,1748505050355,-902.73,0.00022739,2]
[362876021,1748505050366,-1504.2,0.00022739,2]
[362876022,1748505050376,-430.0,0.00022739,2]
[362876023,1748505050385,-430.0,0.00022739,2]
[362876024,1748505050394,-430.0,0.00022739,2]
[362876025,1748505050405,-722.52,0.00022739,2]
[362876026,1748505050414,-791.86,0.00022739,2]
[362876027,1748505050422,-430.0,0.00022739,2]
[362876028,1748505050432,-1447.82,0.00022739,2]
[362876029,1748505050440,-433.64,0.00022739,2]
[362876030,1748505050450,-430.0,0.00022739,2]
[362876031,1748505050460,-430.0,0.00022739,2]
[362876032,1748505050469,-756.65,0.00022739,2]
[362876033,1748505050478,-1636.66,0.00022739,2]
[362876034,1748505050488,-576.68,0.00022739,2]
[362876035,1748505050497,-666.11,0.00022739,2]
[362876036,1748505050507,-430.0,0.00022739,2]
[362876037,1748505050517,-718.68,0.00022739,2]
[362876038,1748505050526,-575.25,0.00022739,2]
[362876039,1748505050535,-430.0,0.00022739,2]
[362876040,1748505050544,-1886.86,0.00022739,2]
[362876041,1748505050554,-430.0,0.00022739,2]
[362876042,1748505050564,-430.0,0.00022739,2]
[362876043,1748505050574,-817.8,0.00022739,2]
[362876044,1748505050583,-449.36,0.00022739,2]
[362876045,1748505050592,-151.0,0.00022739,7]
[362876046,1748505050601,-240.0,0.00022776,2]
[362876047,1748505050611,-410.55189418,0.00022831,8]
[362876048,1748505050620,-3606.37,0.00023,2]
[362876049,1748505050629,-229.26895353,0.00023,3]
[362876050,1748505050639,-160.0,0.00023,3]
[362876051,1748505050648,-151.0,0.00023,7]
[362876052,1748505050657,-151.0,0.00023,7]
[362876053,1748505050666,-151.0,0.00023,7]
[362876054,1748505050676,-400.681675,0.00023,7]
[362876055,1748505050685,-400.681675,0.00023,7]
[362876056,1748505050695,-589.245029,0.00023,7]
[362876057,1748505050704,-589.245029,0.00023,7]
[362876058,1748505050714,-151.0,0.00023,7]
[362876059,1748505050723,-151.0,0.00023,7]
[362876060,1748505050732,-296.781168,0.00023,7]
[362876061,1748505050742,-160.0,0.00023,3]
[362876062,1748505050751,-423.31762986,0.00023,3]
[362876063,1748505050760,-410.55189418,0.00023003,8]
[362876064,1748505050769,-430.0,0.00023013,2]
[362876065,1748505050778,-430.0,0.00023013,2]
[362876066,1748505050787,-430.0,0.00023013,2]
[362876067,1748505050797,-615.3,0.00023013,2]
[362876068,1748505050807,-970.81908,0.00023013,2]
[362876069,1748505050816,-970.81908,0.00023013,2]
[362876070,1748505050825,-814.067911,0.00023013,7]
[362876071,1748505050835,-814.067911,0.00023013,7]
[362876072,1748505050844,-430.0,0.00023013,2]
[362876073,1748505050854,-2732.65,0.00023013,2]
[362876074,1748505050863,-993.66,0.00023013,2]
[362876075,1748505050873,-613.17,0.00023013,2]
[362876076,1748505050882,-902.73,0.00023013,2]
[362876077,1748505050891,-1504.2,0.00023013,2]
[362876078,1748505050900,-430.0,0.00023013,2]
[362876079,1748505050910,-1153.385181,0.00023013,7]
[362876080,1748505050920,-430.0,0.00023013,2]
[362876081,1748505050929,-1153.385181,0.00023013,7]
[362876082,1748505050939,-151.0,0.00023013,7]
[362876083,1748505050948,-430.0,0.00023013,2]
[362876084,1748505050957,-722.52,0.00023013,2]
[362876085,1748505050966,-791.86,0.00023013,2]
[362876086,1748505050975,-430.0,0.00023013,2]
[362876087,1748505050985,-1447.82,0.00023013,2]
[362876088,1748505050994,-433.64,0.00023013,2]
[362876089,1748505051004,-430.0,0.00023013,2]
[362876090,1748505051013,-430.0,0.00023013,2]
[362876091,1748505051022,-756.65,0.00023013,2]
[362876092,1748505051031,-1636.66,0.00023013,2]
[362876093,1748505051041,-576.68,0.00023013,2]
[362876094,1748505051051,-284.330037,0.00023013,7]
[362876095,1748505051061,-284.330037,0.00023013,7]
[362876096,1748505051070,-666.11,0.00023013,2]
[362876097,1748505051079,-430.0,0.00023013,2]
[362876098,1748505051089,-718.68,0.00023013,2]
[362876099,1748505051097,-575.25,0.00023013,2]
[362876100,1748505051106,-430.0,0.00023013,2]
[362876101,1748505051115,-1886.86,0.00023013,2]
[362876102,1748505051125,-336.978384,0.00023013,7]
[362876103,1748505051135,-430.0,0.00023013,2]
[362876104,1748505051144,-336.978384,0.00023013,7]
[362876105,1748505051154,-430.0,0.00023013,2]
[362876106,1748505051165,-817.8,0.00023013,2]
[362876107,1748505051175,-449.36,0.00023013,2]
[362876108,1748505051260,-215.0738,0.00023081,2]
[362876109,1748505051270,-163.276102,0.00023089,3]
[362876110,1748505051280,-250.07019822,0.000231,2]
[362876111,1748505051295,-410.55189418,0.00023176,8]
[362876112,1748505051305,-151.0,0.00023287,7]
[362876113,1748505051315,-151.0,0.00023287,7]
[362876114,1748505051324,-151.0,0.00023287,7]
[362876115,1748505051335,-306.696718,0.00023287,7]
[362876116,1748505051346,-306.696718,0.00023287,7]
[362876117,1748505051357,-202.782535,0.00023287,7]
[362876118,1748505051367,-202.782535,0.00023287,7]
[362876119,1748505051377,-430.0,0.00023287,2]
[362876120,1748505051388,-430.0,0.00023287,2]
[362876121,1748505051398,-151.0,0.00023287,7]
[362876122,1748505051407,-430.0,0.00023287,2]
[362876123,1748505051417,-615.3,0.00023287,2]
[362876124,1748505051428,-430.0,0.00023287,2]
[362876125,1748505051439,-2732.65,0.00023287,2]
[362876126,1748505051450,-993.66,0.00023287,2]
[362876127,1748505051462,-613.17,0.00023287,2]
[362876128,1748505051472,-902.73,0.00023287,2]
[362876129,1748505051483,-1504.2,0.00023287,2]
[362876130,1748505051492,-430.0,0.00023287,2]
[362876131,1748505051503,-430.0,0.00023287,2]
[362876132,1748505051514,-430.0,0.00023287,2]
[362876133,1748505051526,-722.52,0.00023287,2]
[362876134,1748505051535,-791.86,0.00023287,2]
[362876135,1748505051544,-430.0,0.00023287,2]
[362876136,1748505051554,-1447.82,0.00023287,2]
[362876137,1748505051567,-433.64,0.00023287,2]
[362876138,1748505051577,-430.0,0.00023287,2]
[362876139,1748505051587,-430.0,0.00023287,2]
[362876140,1748505051598,-756.65,0.00023287,2]
[362876141,1748505051608,-1636.66,0.00023287,2]
[362876142,1748505051617,-576.68,0.00023287,2]
[362876143,1748505051626,-666.11,0.00023287,2]
[362876144,1748505051635,-430.0,0.00023287,2]
[362876145,1748505051645,-718.68,0.00023287,2]
[362876146,1748505051655,-575.25,0.00023287,2]
[362876147,1748505051664,-430.0,0.00023287,2]
[362876148,1748505051674,-1886.86,0.00023287,2]
[362876149,1748505051683,-430.0,0.00023287,2]
[362876150,1748505051692,-430.0,0.00023287,2]
[362876151,1748505051702,-817.8,0.00023287,2]
[362876152,1748505051711,-449.36,0.00023287,2]
[362876153,1748505051721,-410.55189418,0.00023348,9]
[362876154,1748505051730,-600.0,0.00023356,2]
[362876155,1748505051739,-3402.31570435,0.00023386,3]
[362876156,1748505051748,-961.0,0.00023494,2]
[362876157,1748505051757,-708.0,0.00023494,2]
[362876158,1748505051767,-2228.0,0.00023494,2]
[362876159,1748505051776,-186.919281,0.000235,2]
[362876160,1748505051785,-410.55189418,0.00023521,9]
[362876161,1748505051795,-234.9897792,0.00023561,2]
[362876162,1748505051804,-151.0,0.00023561,7]
[362876163,1748505051815,-182.677771,0.00023561,7]
[362876164,1748505051824,-151.0,0.00023561,7]
[362876165,1748505051833,-151.0,0.00023561,7]
[362876166,1748505051843,-151.0,0.00023561,7]
[362876167,1748505051852,-288.476999,0.00023561,7]
[362876168,1748505051861,-151.0,0.00023561,7]
[362876169,1748505051870,-151.0,0.00023561,7]
[362876170,1748505051879,-183.683837,0.00023561,7]
[362876171,1748505051888,-183.683837,0.00023561,7]
[362876172,1748505051897,-430.0,0.00023561,2]
[362876173,1748505051907,-430.0,0.00023561,2]
[362876174,1748505051917,-430.0,0.00023561,2]
[362876175,1748505051927,-615.3,0.00023561,2]
[362876176,1748505051936,-366.85,0.00023561,2]
[362876177,1748505051946,-2732.65,0.00023561,2]
[362876178,1748505051956,-993.66,0.00023561,2]
[362876179,1748505051965,-613.17,0.00023561,2]
[362876180,1748505051974,-902.73,0.00023561,2]
[362876181,1748505051983,-1504.2,0.00023561,2]
[362876182,1748505051993,-430.0,0.00023561,2]
[362876183,1748505052002,-430.0,0.00023561,2]
[362876184,1748505052012,-430.0,0.00023561,2]
[362876185,1748505052023,-722.52,0.00023561,2]
[362876186,1748505052033,-791.86,0.00023561,2]
[362876187,1748505052042,-430.0,0.00023561,2]
[362876188,1748505052052,-1447.82,0.00023561,2]
[362876189,1748505052063,-433.64,0.00023561,2]
[362876190,1748505052072,-458.35,0.00023561,2]
[362876191,1748505052082,-756.65,0.00023561,2]
[362876192,1748505052091,-1636.66,0.00023561,2]
[362876193,1748505052101,-576.68,0.00023561,2]
[362876194,1748505052110,-666.11,0.00023561,2]
[362876195,1748505052121,-430.0,0.00023561,2]
[362876196,1748505052131,-718.68,0.00023561,2]
[362876197,1748505052141,-575.25,0.00023561,2]
[362876198,1748505052151,-228.45,0.00023561,2]
[362876199,1748505052161,-1886.86,0.00023561,2]
[362876200,1748505052171,-430.0,0.00023561,2]
[362876201,1748505052180,-430.0,0.00023561,2]
[362876202,1748505052190,-817.8,0.00023561,2]
[362876203,1748505052202,-449.36,0.00023561,2]
[362876204,1748505052212,-160.0,0.00023571,2]
[362876205,1748505052224,-190248.9285243,0.00023572,5]
[362876206,1748505052315,-436.73,0.00023572,5]
[362876207,1748505052327,-257.80291215,0.00023572,5]
[362876208,1748505052338,-9056.64088206,0.00023572,5]
[362876209,1748505052348,-151.0,0.00023572,7]
[362876210,1748505052358,-151.0,0.00023572,7]
[362876211,1748505052367,-151.0,0.00023572,7]
[362876212,1748505052376,-151.0,0.00023572,7]
[362876213,1748505052385,-151.0,0.00023572,7]
[362876214,1748505052394,-151.0,0.00023572,7]
[362876215,1748505052403,-151.0,0.00023572,7]
[362876216,1748505052412,-151.0,0.00023572,7]
[362876217,1748505052422,-151.0,0.00023572,7]
[362876218,1748505052431,-151.0,0.00023572,7]
[362876219,1748505052440,-151.0,0.00023572,7]
[362876220,1748505052450,-290.658584,0.00023572,7]
[362876221,1748505052459,-151.0,0.00023572,7]
[362876222,1748505052469,-298.362985,0.00023572,7]
[362876223,1748505052478,-151.0,0.00023572,7]
[362876224,1748505052487,-151.0,0.00023572,7]
[362876225,1748505052497,-151.0,0.00023572,7]
[362876226,1748505052506,-151.0,0.00023572,7]
[362876227,1748505052515,-151.0,0.00023572,7]
[362876228,1748505052526,-217.49321,0.00023572,7]
[362876229,1748505052535,-153.497281,0.00023572,7]
[362876230,1748505052544,-217.49321,0.00023572,7]
[362876231,1748505052553,-151.0,0.00023572,7]
[362876232,1748505052567,-164.688244,0.00023572,7]
[362876233,1748505052577,-151.0,0.00023572,7]
[362876234,1748505052586,-243.897276,0.00023572,7]
[362876235,1748505052595,-151.0,0.00023572,7]
[362876236,1748505052604,-151.0,0.00023572,7]
[362876237,1748505052614,-151.0,0.00023572,7]
[362876238,1748505052623,-1262.839629,0.00023572,7]
[362876239,1748505052632,-151.0,0.00023572,7]
[362876240,1748505052645,-158.60015691,0.00023572,7]
[362876241,1748505052655,-89.4219201,0.00023572,7]
[362876242,1748505186544,4570.0,0.00016,2]
[362876243,1748505525378,166.504531,0.00013699,2]
[362876245,1748505660649,151.0,0.00016,2]
[362876246,1748505660937,151.0,0.00016,2]
[362876248,1748505931860,200.0,0.00024318,120]
[362876249,1748505933349,167.97955839,0.00016,2]
[362876250,1748505958241,794.4000289,0.00015935,2]
[362876251,1748505958265,1584.4999711,0.00015935,2]
[362876252,1748505991150,200.0,0.00023946,120]
[362876253,1748506091719,33695.08522433,0.00022,30]
[362876257,1748506231195,200.0,0.00023866,120]
[362876268,1748506232833,-2335.64,0.00016384,2]
[362876270,1748506232843,-306.95080866,0.00016769,2]
[362876272,1748506232853,-1982.39221934,0.00017164,2]
[362876294,1748506233064,-2688.89778066,0.00017164,2]
[362876296,1748506233073,-1200.0,0.00017498,2]
[362876298,1748506233083,-213.0,0.00017499,2]
[362876300,1748506233093,-300.0,0.00017499,2]
[362876302,1748506233103,-4750.0,0.000175,2]
[362876304,1748506233112,-7006.93,0.00017945,2]
[362876306,1748506233122,-305.6870783,0.00017952,2]
[362876309,1748506233132,-525.06034096,0.00018198,2]
[362876311,1748506233142,-170.0,0.00018204,2]
[362876312,1748506233152,-10564.23331378,0.00018206,2]
[362876314,1748506233162,-294.9802982,0.000184,2]
[362876316,1748506233172,-294.98029817,0.000184,2]
[362876318,1748506233182,-294.98029817,0.000184,2]
[362876320,1748506233192,-294.98029817,0.00018624,2]
[362876322,1748506233202,-500.0,0.00018724,2]
[362876324,1748506233211,-500.0,0.00018724,2]
[362876326,1748506233220,-445.93595448,0.00018724,2]
[362876328,1748506233230,-500.0,0.00018724,2]
[362876329,1748506233240,-216.55933451,0.00018724,2]
[362876330,1748506233251,-9342.57,0.00018725,2]
[362876331,1748506233260,-294.98029817,0.00018866,2]
[362876332,1748506233270,-711.1608474,0.000189,2]
[362876333,1748506233280,-161.34873999,0.00019078,2]
[362876334,1748506233290,-420.0,0.00019103,2]
[362876335,1748506233300,-294.98029817,0.00019107,2]
[362876336,1748506233309,-525.06034091,0.00019155,2]
[362876337,1748506233318,-418.56086243,0.00019173,2]
[362876338,1748506233328,-500.0,0.00019173,2]
[362876339,1748506233337,-500.0,0.00019173,2]
[362876340,1748506233347,-5000.0,0.00019177,2]
[362876341,1748506233358,-500.0,0.00019177,2]
[362876342,1748506233368,-500.0,0.00019177,2]
[362876343,1748506233378,-500.0,0.00019177,2]
[362876344,1748506233388,-386.20007616,0.00019177,2]
[362876345,1748506233398,-500.0,0.00019177,2]
[362876346,1748506233409,-268.67098925,0.00019177,2]
[362876347,1748506233418,-500.0,0.00019177,2]
[362876348,1748506233427,-436.54820355,0.00019177,2]
[362876349,1748506233437,-500.0,0.00019177,2]
[362876350,1748506233446,-500.0,0.00019177,2]
[362876351,1748506233456,-500.0,0.00019177,2]
[362876352,1748506233465,-500.0,0.00019177,2]
[362876353,1748506233474,-500.0,0.00019177,2]
[362876354,1748506233483,-542.76,0.00019178,2]
[362876355,1748506233493,-430.0,0.00019178,2]
[362876356,1748506233502,-430.0,0.00019178,2]
[362876357,1748506233511,-430.0,0.00019178,2]
[362876358,1748506233521,-463.75281505,0.00019178,2]
[362876359,1748506233530,-430.0,0.00019178,2]
[362876360,1748506233540,-430.0,0.00019178,2]
[362876361,1748506233549,-430.0,0.00019178,2]
[362876362,1748506233559,-419.41885661,0.00019178,2]
[362876363,1748506233569,-430.0,0.00019178,2]
[362876364,1748506233579,-430.0,0.00019178,2]
[362876365,1748506233588,-430.0,0.00019178,2]
[362876366,1748506233598,-430.0,0.00019178,2]
[362876367,1748506233607,-430.0,0.00019178,2]
[362876368,1748506233617,-404.49380786,0.00019178,2]
[362876369,1748506233626,-430.0,0.00019178,2]
[362876370,1748506233636,-430.0,0.00019178,2]
[362876371,1748506233646,-430.0,0.00019178,2]
[362876372,1748506233656,-430.0,0.00019178,2]
[362876373,1748506233667,-430.0,0.00019178,2]
[362876374,1748506233678,-427.77189891,0.00019178,2]
[362876375,1748506233688,-430.0,0.00019178,2]
[362876376,1748506233702,-430.0,0.00019178,2]
[362876377,1748506233712,-430.0,0.00019178,2]
[362876378,1748506233721,-430.0,0.00019178,2]
[362876379,1748506233731,-430.0,0.00019178,2]
[362876380,1748506233741,-430.0,0.00019178,2]
[362876381,1748506233751,-430.0,0.00019178,2]
[362876382,1748506233761,-430.0,0.00019178,2]
[362876383,1748506233773,-430.0,0.00019178,2]
[362876384,1748506233783,-400.0,0.00019178,2]
[362876385,1748506233792,-430.0,0.00019178,2]
[362876386,1748506233803,-400.0,0.00019178,2]
[362876387,1748506233812,-400.0,0.00019178,2]
[362876388,1748506233822,-400.0,0.00019178,2]
[362876389,1748506233832,-430.0,0.00019178,2]
[362876390,1748506233842,-430.0,0.00019178,2]
[362876391,1748506233851,-402.47726096,0.00019178,2]
[362876392,1748506233861,-400.0,0.00019178,2]
[362876393,1748506233870,-400.0,0.00019178,2]
[362876394,1748506233881,-400.0,0.00019178,2]
[362876395,1748506233891,-400.0,0.00019178,2]
[362876396,1748506233901,-430.0,0.00019178,2]
[362876397,1748506233911,-430.0,0.00019178,2]
[362876398,1748506233921,-400.0,0.00019178,2]
[362876399,1748506233930,-400.0,0.00019178,2]
[362876400,1748506233939,-400.0,0.00019178,2]
[362876401,1748506233949,-400.0,0.00019178,2]
[362876402,1748506233959,-430.0,0.00019178,2]
[362876403,1748506233968,-400.0,0.00019178,2]
[362876404,1748506233979,-430.0,0.00019178,2]
[362876405,1748506233989,-430.0,0.00019178,2]
[362876406,1748506233998,-430.0,0.00019178,2]
[362876407,1748506234007,-400.0,0.00019178,2]
[362876408,1748506234017,-400.0,0.00019178,2]
[362876409,1748506234026,-430.0,0.00019178,2]
[362876410,1748506234036,-430.0,0.00019178,2]
[362876411,1748506234045,-404.41358098,0.00019178,2]
[362876412,1748506234055,-430.0,0.00019178,2]
[362876413,1748506234065,-430.0,0.00019178,2]
[362876414,1748506234076,-443.5571818,0.00019178,2]
[362876415,1748506234086,-412.79578485,0.00019178,2]
[362876416,1748506234095,-430.0,0.00019178,2]
[362876417,1748506234105,-430.0,0.00019178,2]
[362876418,1748506234115,-400.0,0.00019178,2]
[362876419,1748506234124,-400.0,0.00019178,2]
[362876420,1748506234134,-400.0,0.00019178,2]
[362876421,1748506234144,-430.0,0.00019178,2]
[362876422,1748506234154,-430.0,0.00019178,2]
[362876423,1748506234165,-430.0,0.00019178,2]
[362876424,1748506234174,-400.0,0.00019178,2]
[362876425,1748506234184,-420.24538879,0.00019178,2]
[362876426,1748506234195,-460.61382357,0.00019178,2]
[362876427,1748506234204,-430.0,0.00019178,2]
[362876428,1748506234214,-430.0,0.00019178,2]
[362876429,1748506234223,-561.83503069,0.00019178,2]
[362876430,1748506234232,-400.0,0.00019178,2]
[362876431,1748506234242,-430.0,0.00019178,2]
[362876432,1748506234251,-430.0,0.00019178,2]
[362876433,1748506234261,-416.06911421,0.00019178,2]
[362876434,1748506234271,-298.79108871,0.00019178,2]
[362876435,1748506234281,-400.0,0.00019178,2]
[362876436,1748506234290,-430.0,0.00019178,2]
[362876437,1748506234300,-434.56401355,0.00019178,2]
[362876438,1748506234310,-401.87167631,0.00019178,2]
[362876439,1748506234319,-430.0,0.00019178,2]
[362876440,1748506234329,-400.0,0.00019178,2]
[362876441,1748506234339,-430.0,0.00019178,2]
[362876442,1748506234349,-430.0,0.00019178,2]
[362876443,1748506234359,-430.0,0.00019178,2]
[362876444,1748506234369,-430.0,0.00019178,2]
[362876445,1748506234378,-430.0,0.00019178,2]
[362876446,1748506234388,-306.33,0.00019178,2]
[362876447,1748506234398,-430.0,0.00019178,2]
[362876448,1748506234407,-430.0,0.00019178,2]
[362876449,1748506234417,-430.0,0.00019178,2]
[362876450,1748506234427,-430.0,0.00019178,2]
[362876451,1748506234437,-430.0,0.00019178,2]
[362876452,1748506234446,-290.0,0.00019178,2]
[362876453,1748506234455,-430.0,0.00019178,2]
[362876454,1748506234465,-430.0,0.00019178,2]
[362876455,1748506234475,-430.0,0.00019178,2]
[362876456,1748506234485,-430.0,0.00019178,2]
[362876457,1748506234495,-430.0,0.00019178,2]
[362876458,1748506234505,-430.0,0.00019178,2]
[362876459,1748506234514,-430.0,0.00019178,2]
[362876460,1748506234525,-430.0,0.00019178,2]
[362876461,1748506234535,-999.99,0.00019178,2]
[362876462,1748506234545,-430.0,0.00019178,2]
[362876463,1748506234554,-430.0,0.00019178,2]
[362876464,1748506234564,-797.03,0.00019178,2]
[362876465,1748506234573,-430.0,0.00019178,2]
[362876466,1748506234583,-541.49316756,0.00019178,2]
[362876467,1748506234707,-430.0,0.00019178,2]
[362876468,1748506234717,-430.0,0.00019178,2]
[362876469,1748506234728,-430.0,0.00019178,2]
[362876470,1748506234737,-430.0,0.00019178,2]
[362876471,1748506234746,-8.16345146,0.00019178,2]
[362876493,1748506238673,-430.0,0.00019178,2]
[362876495,1748506238683,-430.0,0.00019178,2]
[362876497,1748506238692,-430.0,0.00019178,2]
[362876498,1748506238706,-430.0,0.00019178,2]
[362876500,1748506238715,-430.0,0.00019178,2]
[362876503,1748506238726,-430.0,0.00019178,2]
[362876504,1748506238735,-510.54,0.00019178,2]
[362876506,1748506238744,-430.0,0.00019178,2]
[362876508,1748506238753,-430.0,0.00019178,2]
[362876510,1748506238762,-430.0,0.00019178,2]
[362876512,1748506238772,-430.0,0.00019178,2]
[362876514,1748506238781,-430.0,0.00019178,2]
[362876516,1748506238790,-430.0,0.00019178,2]
[362876518,1748506238799,-430.0,0.00019178,2]
[362876520,1748506238808,-430.0,0.00019178,2]
[362876523,1748506238818,-807.69,0.00019178,2]
[362876525,1748506238827,-430.0,0.00019178,2]
[362876527,1748506238836,-430.0,0.00019178,2]
[362876529,1748506238845,-430.0,0.00019178,2]
[362876531,1748506238854,-430.0,0.00019178,2]
[362876533,1748506238863,-430.0,0.00019178,2]
[362876535,1748506238873,-430.0,0.00019178,2]
[362876537,1748506238882,-430.0,0.00019178,2]
[362876539,1748506238891,-430.0,0.00019178,2]
[362876541,1748506238901,-430.0,0.00019178,2]
[362876543,1748506238911,-430.0,0.00019178,2]
[362876545,1748506238920,-430.0,0.00019178,2]
[362876547,1748506238930,-510.0,0.00019178,2]
[362876549,1748506238941,-430.0,0.00019178,2]
[362876551,1748506238950,-430.0,0.00019178,2]
[362876553,1748506238959,-430.0,0.00019178,2]
[362876555,1748506238968,-430.0,0.00019178,2]
[362876557,1748506238978,-430.0,0.00019178,2]
[362876560,1748506238993,-430.0,0.00019178,2]
[362876562,1748506239007,-430.0,0.00019178,2]
[362876564,1748506239017,-430.0,0.00019178,2]
[362876567,1748506239027,-430.0,0.00019178,2]
[362876570,1748506239036,-430.0,0.00019178,2]
[362876572,1748506239046,-430.0,0.00019178,2]
[362876574,1748506239056,-430.0,0.00019178,2]
[362876577,1748506239067,-430.0,0.00019178,2]
[362876579,1748506239077,-430.0,0.00019178,2]
[362876581,1748506239086,-430.0,0.00019178,2]
[362876583,1748506239096,-430.0,0.00019178,2]